[Event "FIN-ch Seniors 2019"]
[Site "Helsinki"]
[Date "2019.06.16"]
[Round "7.4"]
[White "Auvinen, Esa"]
[Black "Koskinen, Veikko"]
[Result "1/2-1/2"]
[ECO "E57"]
[WhiteElo "1899"]
[BlackElo "1866"]
[Annotator "NA RC"]
[PlyCount "44"]
[EventDate "2019.06.10"]
[EventType "swiss"]
[EventCountry "FIN"]
[SourceTitle "playchess.com"]
[Source "ChessBase"]
[SourceQuality "1"]
[TimeControl "40/5400+30:1800+30"]

1. e4 c6 2. d4 d5 3. exd5 cxd5 4. c4 Nf6 5. Nc3 e6 6. Nf3 Bb4 7. a3 Bxc3+ {
[%emt 1:33:30]} 8. bxc3 {[%emt 1:34:00]} Nc6 {[%emt 0:00:30]} 9. Bd3 {[%emt 0:
00:30]} dxc4 {[%emt 0:00:30]} 10. Bxc4 {[%emt 0:00:30]} O-O {[%emt 0:00:30]}
11. O-O {[%emt 0:00:30]} h6 {[%emt 0:00:30]} 12. Bd3 {[%emt 0:00:30]} b6 {
[%emt 0:00:30]} 13. Re1 {[%emt 0:00:30]} Bb7 {[%emt 0:00:30]} 14. Ne5 {[%emt 0:
00:30]} Rc8 {[%emt 0:00:30]} 15. Bd2 {[%emt 0:00:30]} Ne7 {[%emt 0:00:30]} 16.
Ng4 {[%emt 0:00:30]} Ned5 {[%emt 0:00:30]} 17. c4 {[%emt 0:00:30]} Nxg4 {
[%emt 0:00:30]} 18. cxd5 {[%emt 0:00:30]} Qh4 {[%emt 0:00:30]} 19. Qf3 {
[%emt 0:00:30]} Bxd5 {[%emt 0:00:30]} 20. Qf4 {[%emt 0:00:30]} g5 {[%emt 0:00:
30]} 21. Qg3 {[%emt 0:00:30]} Qxg3 {[%emt 0:00:30]} 22. hxg3 {[%emt 0:00:30]}
f5 {[%emt 0:00:30]} 1/2-1/2

[Event "FIN-ch Seniors 2019"]
[Site "Helsinki"]
[Date "2019.06.16"]
[Round "7.6"]
[White "Ruotanen, Helge"]
[Black "Lyly, Seppo"]
[Result "1-0"]
[ECO "A00"]
[WhiteElo "1920"]
[BlackElo "1907"]
[Annotator "NA RC"]
[PlyCount "51"]
[EventDate "2019.06.10"]
[EventType "swiss"]
[EventCountry "FIN"]
[SourceTitle "playchess.com"]
[Source "ChessBase"]
[SourceQuality "1"]
[TimeControl "40/5400+30:1800+30"]

1. g3 d5 2. Bg2 e5 3. d3 Nc6 4. Nc3 Be6 5. Nf3 f6 6. e4 d4 7. Ne2 Qd7 8. O-O
O-O-O {[%emt 1:34:00]} 9. a3 {[%emt 1:34:30]} g5 {[%emt 0:00:30]} 10. Ne1 {
[%emt 0:00:30]} h5 {[%emt 0:00:30]} 11. f4 {[%emt 0:00:30]} gxf4 {[%emt 0:00:
30]} 12. gxf4 {[%emt 0:00:30]} Bh3 {[%emt 0:00:30]} 13. Bxh3 {[%emt 0:00:30]}
Qxh3 {[%emt 0:00:30]} 14. Rf3 {[%emt 0:00:30]} Qd7 {[%emt 0:00:30]} 15. f5 {
[%emt 0:00:30]} h4 {[%emt 0:00:30]} 16. Kh1 {[%emt 0:00:30]} Bd6 {[%emt 0:00:
30]} 17. Ng1 {[%emt 0:00:30]} Qh7 {[%emt 0:00:30]} 18. Rh3 {[%emt 0:00:30]} Qg7
{[%emt 0:00:30]} 19. Ng2 {[%emt 0:00:30]} Nge7 {[%emt 0:00:30]} 20. Bd2 {
[%emt 0:00:30]} Rdg8 {[%emt 0:00:30]} 21. Qe2 {[%emt 0:00:30]} Qf7 {[%emt 0:00:
30]} 22. Nf3 {[%emt 0:00:30]} Nxf5 {[%emt 0:00:30]} 23. exf5 {[%emt 0:00:30]}
e4 {[%emt 0:00:30]} 24. dxe4 {[%emt 0:00:30]} Ne5 {[%emt 0:00:30]} 25. Nxe5 {
[%emt 0:00:30]} Bxe5 {[%emt 0:00:30]} 26. Nf4 {[%emt 0:00:30]} 1-0

[Event "FIN-ch Seniors 2019"]
[Site "Helsinki"]
[Date "2019.06.16"]
[Round "7.7"]
[White "Patola, Eero"]
[Black "Saharinen, Petri"]
[Result "1-0"]
[ECO "D13"]
[WhiteElo "1853"]
[BlackElo "1719"]
[Annotator "NA RC"]
[PlyCount "85"]
[EventDate "2019.06.10"]
[EventType "swiss"]
[EventCountry "FIN"]
[SourceTitle "playchess.com"]
[Source "ChessBase"]
[SourceQuality "1"]
[TimeControl "40/5400+30:1800+30"]

1. c4 {[%emt 0:17:06]} e6 {[%emt 0:00:00]} 2. d4 {[%emt 0:02:51]} d5 {[%emt 0:
00:00]} 3. Nf3 {[%emt 0:00:56]} Nf6 {[%emt 0:00:13]} 4. Nc3 {[%emt 0:00:38]} c6
{[%emt 0:00:19]} 5. cxd5 {[%emt 0:01:34]} cxd5 {[%emt 0:00:17]} 6. g3 {[%emt 0:
00:45]} Bd7 {[%emt 0:03:35]} 7. Ne5 {[%emt 0:03:25]} Be7 {[%emt 0:00:31]} 8.
Nxd7 {[%emt 0:00:23]} Nbxd7 {[%emt 0:00:14]} 9. Bg2 {[%emt 0:00:12]} a6 {
[%emt 0:00:27]} 10. O-O {[%emt 0:00:32]} O-O {[%emt 0:00:17]} 11. Bf4 {[%emt 0:
02:43]} Rc8 {[%emt 0:00:12]} 12. Rc1 {[%emt 0:00:30]} Nb6 {[%emt 0:00:32]} 13.
Qb3 {[%emt 0:00:43]} Rc4 {[%emt 0:04:22]} 14. a3 {[%emt 0:02:24]} Rxd4 {
[%emt 0:01:00]} 15. Be3 {[%emt 0:00:22]} e5 {[%emt 0:12:48]} 16. Bxd4 {[%emt 0:
03:04]} exd4 {[%emt 0:00:09]} 17. Nb1 {[%emt 0:02:03]} Ne4 {[%emt 0:02:27]} 18.
Qd3 {[%emt 0:01:32]} Nc5 {[%emt 0:03:52]} 19. Qd1 {[%emt 0:01:12]} Nc4 {
[%emt 0:03:08]} 20. b3 {[%emt 0:03:37]} Nb6 {[%emt 0:01:54]} 21. b4 {[%emt 0:
01:37]} Ne6 {[%emt 0:00:25]} 22. Nd2 {[%emt 0:02:05]} Bg5 {[%emt 0:03:33]} 23.
h4 {[%emt 0:02:41]} Bf6 {[%emt 0:00:56]} 24. Qb3 {[%emt 0:03:47]} Nc7 {[%emt 0:
05:40]} 25. a4 {[%emt 0:03:15]} Qd7 {[%emt 0:00:55]} 26. a5 {[%emt 0:01:30]}
Na4 {[%emt 0:00:25]} 27. Rxc7 {[%emt 0:01:36]} Qxc7 {[%emt 0:00:25]} 28. Qxa4 {
[%emt 0:00:09]} Qd6 {[%emt 0:03:17]} 29. Qb3 {[%emt 0:02:02]} Rd8 {[%emt 0:00:
13]} 30. Rc1 {[%emt 0:01:13]} g5 {[%emt 0:01:43]} 31. hxg5 {[%emt 0:01:50]}
Bxg5 {[%emt 0:00:23]} 32. Rd1 {[%emt 0:01:55]} Qe6 {[%emt 0:03:20]} 33. Nf3 {
[%emt 0:01:49]} Bf6 {[%emt 0:00:37]} 34. Nxd4 {[%emt 0:03:16]} Bxd4 {[%emt 0:
00:28]} 35. Rxd4 {[%emt 0:00:33]} Qxe2 {[%emt 0:00:24]} 36. Bxd5 {[%emt 0:04:
39]} Qe1+ {[%emt 0:03:14]} 37. Kg2 {[%emt 0:00:25]} Kf8 {[%emt 0:00:51]} 38.
Rf4 {[%emt 0:01:22]} Rd7 {[%emt 0:01:10]} 39. Bxf7 {[%emt 0:01:46]} Ke7 {
[%emt 0:04:04]} 40. Bh5 {[%emt 0:02:44]} Kd8 {[%emt 0:02:40]} 41. Rf8+ {
[%emt 0:33:02]} Kc7 {[%emt 0:30:57]} 42. Qc4+ {[%emt 0:00:35]} Kd6 {[%emt 0:00:
15]} 43. Qc5+ {[%emt 0:00:26]} 1-0

[Event "FIN-ch Seniors 2019"]
[Site "Helsinki"]
[Date "2019.06.16"]
[Round "7.8"]
[White "Sihvonen, Tero"]
[Black "Kangas, Mauno"]
[Result "0-1"]
[ECO "B07"]
[WhiteElo "1983"]
[BlackElo "1831"]
[Annotator "NA RC"]
[PlyCount "66"]
[EventDate "2019.06.10"]
[EventType "swiss"]
[EventCountry "FIN"]
[SourceTitle "playchess.com"]
[Source "ChessBase"]
[SourceQuality "1"]
[TimeControl "40/5400+30:1800+30"]

1. e4 {[%emt 0:00:01]} d6 {[%emt 0:08:20]} 2. d4 {[%emt 0:00:13]} Nf6 {[%emt 0:
00:14]} 3. Nc3 {[%emt 0:00:07]} g6 {[%emt 0:00:08]} 4. Bg5 {[%emt 0:00:24]} Bg7
{[%emt 0:00:34]} 5. e5 {[%emt 0:00:15]} dxe5 {[%emt 0:01:56]} 6. dxe5 {[%emt 0:
00:13]} Qxd1+ {[%emt 0:00:25]} 7. Rxd1 {[%emt 0:00:13]} Nfd7 {[%emt 0:03:34]}
8. f4 {[%emt 0:03:44]} c6 {[%emt 0:05:07]} 9. Nf3 {[%emt 0:00:58]} Na6 {
[%emt 0:01:57]} 10. a3 {[%emt 0:01:46]} Nc7 {[%emt 0:00:12]} 11. Bc4 {[%emt 0:
00:43]} Nb6 {[%emt 0:01:19]} 12. Bb3 {[%emt 0:11:22]} Ne6 {[%emt 0:00:22]} 13.
O-O {[%emt 0:01:52]} h6 {[%emt 0:01:27]} 14. Bh4 {[%emt 0:01:13]} Nxf4 {
[%emt 0:01:38]} 15. Bg3 {[%emt 0:04:16]} Ne6 {[%emt 0:03:38]} 16. Nd4 {[%emt 0:
03:26]} O-O {[%emt 0:02:53]} 17. Nxe6 {[%emt 0:26:27]} fxe6 {[%emt 0:00:33]}
18. Rxf8+ {[%emt 0:00:47]} Bxf8 {[%emt 0:00:26]} 19. Ne4 {[%emt 0:00:43]} Nd5 {
[%emt 0:00:48]} 20. c4 {[%emt 0:02:43]} Ne3 {[%emt 0:01:26]} 21. Rd8 {[%emt 0:
00:36]} b6 {[%emt 0:00:14]} 22. Bf4 {[%emt 0:02:06]} Nf5 {[%emt 0:02:20]} 23.
c5 {[%emt 0:01:50]} Kf7 {[%emt 0:00:35]} 24. g4 {[%emt 0:03:29]} Nh4 {[%emt 0:
07:01]} 25. Kf2 {[%emt 0:04:55]} Bb7 {[%emt 0:04:31]} 26. Rd7 {[%emt 0:00:16]}
Ba6 {[%emt 0:03:39]} 27. Kg3 {[%emt 0:00:36]} g5 {[%emt 0:03:37]} 28. Be3 {
[%emt 0:07:58]} Ng6 {[%emt 0:01:58]} 29. Bd4 {[%emt 0:02:20]} Nf4 {[%emt 0:01:
14]} 30. h4 {[%emt 0:05:52]} Ke8 {[%emt 0:04:09]} 31. Rc7 {[%emt 0:00:51]} Ne2+
{[%emt 0:00:18]} 32. Kh3 {[%emt 0:04:03]} Nxd4 {[%emt 0:00:26]} 33. Bd1 {
[%emt 0:00:18]} Kd8 {[%emt 0:01:32]} 0-1

[Event "FIN-ch Seniors 2019"]
[Site "Helsinki"]
[Date "2019.06.17"]
[Round "8.1"]
[White "Hurme, Harri"]
[Black "Koskinen, Veikko"]
[Result "1-0"]
[ECO "A90"]
[WhiteElo "2122"]
[BlackElo "1866"]
[Annotator "RC"]
[PlyCount "87"]
[EventDate "2019.06.10"]
[EventType "swiss"]
[EventCountry "FIN"]
[SourceTitle "playchess.com"]
[Source "ChessBase"]
[SourceQuality "1"]
[TimeControl "40/5400+30:1800+30"]

1. d4 {[%emt 0:00:00]} f5 {[%emt 0:00:46]} 2. g3 {[%emt 0:00:00]} Nf6 {[%emt 0:
00:36]} 3. Bg2 {[%emt 0:00:00]} e6 {[%emt 0:01:41]} 4. Nf3 {[%emt 0:00:02]} d5
{[%emt 0:00:17]} 5. O-O {[%emt 0:00:40]} Bd6 {[%emt 0:01:46]} 6. Bf4 {[%emt 0:
01:34]} O-O {[%emt 0:05:09]} 7. c4 {[%emt 0:00:43]} c6 {[%emt 0:08:59]} 8. Bxd6
{[%emt 0:01:02]} Qxd6 {[%emt 0:00:08]} 9. Qc2 {[%emt 0:00:33]} b6 {[%emt 0:01:
46]} 10. Nc3 {[%emt 0:05:20]} Ba6 {[%emt 0:08:03]} 11. cxd5 {[%emt 0:01:37]}
cxd5 {[%emt 0:04:03]} 12. Rfc1 {[%emt 0:02:31]} Rc8 {[%emt 0:12:09]} 13. Qa4 {
[%emt 0:03:03]} Rc4 {[%emt 0:01:33]} 14. Qd1 {[%emt 0:01:34]} Nbd7 {[%emt 0:00:
34]} 15. e3 {[%emt 0:02:24]} Rcc8 {[%emt 0:11:50]} 16. Qa4 {[%emt 0:01:43]} b5
{[%emt 0:02:45]} 17. Nxb5 {[%emt 0:08:32]} Bxb5 {[%emt 0:02:28]} 18. Qxb5 {
[%emt 0:00:03]} Rab8 {[%emt 0:00:41]} 19. Qe2 {[%emt 0:02:27]} Ne4 {[%emt 0:00:
54]} 20. Ne1 {[%emt 0:01:10]} Nb6 {[%emt 0:03:43]} 21. f3 {[%emt 0:00:41]} Nf6
{[%emt 0:00:35]} 22. Nd3 {[%emt 0:01:28]} g6 {[%emt 0:03:34]} 23. b3 {[%emt 0:
04:08]} Nfd7 {[%emt 0:01:38]} 24. Qd2 {[%emt 0:02:00]} Rxc1+ {[%emt 0:04:37]}
25. Rxc1 {[%emt 0:00:26]} Rc8 {[%emt 0:00:21]} 26. Rxc8+ {[%emt 0:02:44]} Nxc8
{[%emt 0:00:06]} 27. Qc3 {[%emt 0:00:27]} Ne7 {[%emt 0:04:07]} 28. a4 {[%emt 0:
01:29]} Qc6 {[%emt 0:01:05]} 29. Qxc6 {[%emt 0:01:39]} Nxc6 {[%emt 0:00:07]}
30. Bf1 {[%emt 0:02:15]} Kf7 {[%emt 0:01:11]} 31. Kf2 {[%emt 0:03:31]} Ke7 {
[%emt 0:00:27]} 32. Ke1 {[%emt 0:02:53]} Kd6 {[%emt 0:03:29]} 33. Kd2 {[%emt 0:
01:11]} a5 {[%emt 0:02:05]} 34. Kc3 {[%emt 0:00:57]} e5 {[%emt 0:04:23]} 35.
dxe5+ {[%emt 0:02:43]} Ndxe5 {[%emt 0:00:28]} 36. Nxe5 {[%emt 0:00:33]} Kxe5 {
[%emt 0:00:13]} 37. f4+ {[%emt 0:06:24]} Ke6 {[%emt 0:04:53]} 38. h3 {[%emt 0:
02:47]} Kd6 {[%emt 0:02:09]} 39. g4 {[%emt 0:03:22]} Kc5 {[%emt 0:02:51]} 40.
g5 {[%emt 0:02:12]} Kd6 {[%emt 0:01:08]} 41. h4 {[%emt 0:31:26]} Kc5 {[%emt 0:
02:29]} 42. Be2 {[%emt 0:00:00]} d4+ {[%emt 0:09:01]} 43. Kd2 {[%emt 0:00:00]}
Kd5 {[%emt 0:04:29]} 44. Bf3+ {[%emt 0:00:00]} 1-0

[Event "FIN-ch Seniors 2019"]
[Site "Helsinki"]
[Date "2019.06.17"]
[Round "8.2"]
[White "Patola, Eero"]
[Black "Peltola, Leo"]
[Result "1/2-1/2"]
[ECO "A36"]
[WhiteElo "1853"]
[BlackElo "1933"]
[Annotator "NA"]
[PlyCount "86"]
[EventDate "2019.06.10"]
[EventType "swiss"]
[EventCountry "FIN"]
[SourceTitle "playchess.com"]
[Source "ChessBase"]
[SourceQuality "1"]
[TimeControl "40/5400+30:1800+30"]

{[%evp 8,86,0,1,11,4,9,6,6,32767,32767,32767,32767,32767,32767,1,14,0,6,-17,
-16,-53,-22,-39,-28,-69,-25,-37,-42,-63,-17,-46,-37,-46,32767,-103,-85,32767,
32767,32767,32767,-19,-6,32767,-58,-68,32767,32767,-9,-70,-66,-49,32767,32767,
32767,32767,32767,32767,0,0,0,-80,32767,0,32767,0,32767,70,177,47,58,0,0,0,0,0,
32767,0,8,8,20]} 1. e4 {[%emt 0:00:51]} c5 {[%emt 0:00:00]} 2. c4 {[%emt 0:00:
07]} Nc6 {[%emt 0:00:00]} 3. Nc3 {[%emt 0:00:07]} g6 {[%emt 0:00:19]} 4. g3 {
[%emt 0:00:13]} Bg7 {[%emt 0:00:06]} 5. Bg2 {[%emt 0:00:07]} e6 {[%emt 0:01:22]
} 6. d3 {[%emt 0:01:08]} Nge7 {[%emt 0:00:22]} 7. Nge2 {[%emt 0:00:24]} O-O {
[%emt 0:00:25]} 8. O-O {[%emt 0:01:57]} d6 {[%emt 0:01:48]} 9. Rb1 {[%emt 0:00:
51]} Bd7 {[%emt 0:07:42] A36: Symmetrical English vs ...g6: 4 Bg2 Bg7} (9... b6
10. a3 Bb7 11. b4 Nd4 12. Be3 Qd7 13. Qd2 Nxe2+ 14. Nxe2 cxb4 15. axb4 d5 16.
Qa2 Rfd8 17. Rfc1 Nc6 18. Bg5 Re8 19. cxd5 exd5 20. exd5 Ne7 21. Nf4 {1/2-1/2 
(71) Gordievsky,D (2622)-Krasenkow,M (2671) Wijk aan Zee 2018}) 10. f4 {
[%emt 0:03:51]} f5 {[%emt 0:03:39]} 11. Be3 $146 {[%emt 0:02:02]} ({
Predecessor:} 11. a3 a5 12. Nb5 Qb8 13. Be3 a4 14. e5 Nc8 15. exd6 Nd4 16.
Nbxd4 cxd4 17. Bxd4 Bxd4+ 18. Nxd4 {0-1 (29) Weng,X (1573)-Goh,Z (1908)
Auckland 2019}) 11... Nd4 {[%emt 0:02:31]} 12. Bf2 {[%emt 0:04:13]} Bc6 {
[%emt 0:06:09]} 13. Nxd4 {[%emt 0:01:37]} cxd4 {[%emt 0:00:18]} 14. Ne2 {
[%emt 0:00:42]} e5 {[%emt 0:00:45]} 15. b4 $1 {[%emt 0:00:48]} b6 {[%emt 0:05:
48]} 16. h3 {[%emt 0:02:48]} ({White should play} 16. c5 $11) 16... Qd7 {
[%emt 0:06:25]} 17. b5 {[%emt 0:07:27]} Bb7 {[%emt 0:00:15]} 18. Kh2 {[%emt 0:
00:24]} h6 {[%emt 0:07:53]} 19. Qb3 {[%emt 0:02:13]} Kh7 {[%emt 0:01:17]} 20.
a4 {[%emt 0:00:16]} Ng8 {[%emt 0:10:40]} 21. Bg1 {[%emt 0:20:38]} (21. a5 $11
fxe4 22. a6) 21... Rae8 {[%emt 0:08:38]} 22. Qa3 {[%emt 0:03:16]} fxe4 {
[%emt 0:08:13]} 23. dxe4 {[%emt 0:01:29]} exf4 {[%emt 0:01:07]} 24. Nxf4 {
[%emt 0:04:38]} Bxe4 {[%emt 0:06:41]} 25. Bxe4 {[%emt 0:00:25]} Rxe4 {[%emt 0:
00:11]} 26. Qd3 {[%emt 0:03:05]} Qf5 {[%emt 0:01:50]} 27. Ng2 {[%emt 0:10:46]}
Qe5 {[%emt 0:01:14]} 28. Rxf8 {[%emt 0:03:39]} (28. Rfe1 $11 Re8 29. Rbd1)
28... Bxf8 {[%emt 0:00:11]} 29. Rf1 {[%emt 0:02:27]} Bg7 {[%emt 0:01:25]} 30.
Rf4 {[%emt 0:00:46]} Rxf4 {[%emt 0:01:46]} 31. Nxf4 {[%emt 0:00:23]} Ne7 {
[%emt 0:00:51]} 32. Kg2 {[%emt 0:02:23]} Nf5 {[%emt 0:01:23]} (32... h5 $15 33.
Kf3 Qe1) 33. Bf2 {[%emt 0:03:00]} Bf6 {[%emt 0:01:41]} 34. Ne2 {[%emt 0:02:17]}
(34. Kf3 $11) 34... Ne3+ {[%emt 0:01:23]} 35. Bxe3 {[%emt 0:02:44]} dxe3 {
[%emt 0:01:14]} 36. h4 {[%emt 0:03:51]} Be7 {[%emt 0:06:04]} 37. Nf4 {[%emt 0:
01:36]} Qb2+ {[%emt 0:02:45] [#]} (37... e2 $16 {might work better.} 38. Nxe2 (
38. Qxg6+ Kh8 $11) 38... Kg7) 38. Kh3 {[%emt 0:01:20]} (38. Kf3 $1 $16 Qf6 39.
h5 (39. Kxe3 h5 $14)) 38... Qf6 {[%emt 0:01:21]} 39. h5 {[%emt 0:04:41]} Qf5+ {
[%emt 0:01:57]} 40. Qxf5 {[%emt 0:00:15]} gxf5 {[%emt 0:00:02]} 41. Kg2 {
[%emt 0:30:26]} Kg7 {[%emt 0:06:45]} 42. Kf3 {[%emt 0:00:00]} Bf6 {[%emt 0:01:
04]} 43. Kxe3 {[%emt 0:00:00]} Be5 $11 {[%emt 0:26:00] Ke4} 1/2-1/2

[Event "FIN-ch Seniors 2019"]
[Site "Helsinki"]
[Date "2019.06.17"]
[Round "8.3"]
[White "Kivipelto, Kaj"]
[Black "Nyrhinen, Harri"]
[Result "1-0"]
[ECO "A10"]
[WhiteElo "2130"]
[BlackElo "2001"]
[Annotator "RC"]
[PlyCount "53"]
[EventDate "2019.06.10"]
[EventType "swiss"]
[EventCountry "FIN"]
[SourceTitle "playchess.com"]
[Source "ChessBase"]
[SourceQuality "1"]
[TimeControl "40/5400+30:1800+30"]

1. Nf3 {[%emt 0:01:14]} f5 {[%emt 0:02:11]} 2. c4 {[%emt 0:00:35]} Nf6 {
[%emt 0:00:35]} 3. Nc3 {[%emt 0:00:22]} e6 {[%emt 0:00:25]} 4. d3 {[%emt 0:03:
28]} d5 {[%emt 0:04:03]} 5. cxd5 {[%emt 0:01:23]} exd5 {[%emt 0:01:04]} 6. g3 {
[%emt 0:04:31]} c6 {[%emt 0:03:03]} 7. Bg2 {[%emt 0:01:30]} Bd6 {[%emt 0:02:40]
} 8. O-O {[%emt 0:03:54]} O-O {[%emt 0:01:13]} 9. e4 {[%emt 0:01:58]} fxe4 {
[%emt 0:04:52]} 10. dxe4 {[%emt 0:00:30]} dxe4 {[%emt 0:14:20]} 11. Ng5 {
[%emt 0:05:19]} Qc7 {[%emt 0:05:50]} 12. Ncxe4 {[%emt 0:14:38]} Nxe4 {[%emt 0:
02:58]} 13. Bxe4 {[%emt 0:00:39]} Bf5 {[%emt 0:09:24]} 14. Qd3 {[%emt 0:11:33]}
g6 {[%emt 0:06:05]} 15. Qb3+ {[%emt 0:11:28]} Kh8 {[%emt 0:01:24]} 16. Ne6 {
[%emt 0:03:39]} Bxe6 {[%emt 0:00:22]} 17. Qxe6 {[%emt 0:00:02]} Na6 {[%emt 0:
08:19]} 18. Qh3 {[%emt 0:01:31]} Qf7 {[%emt 0:01:28]} 19. Bh6 {[%emt 0:04:47]}
Rfe8 {[%emt 0:00:58]} 20. Bc2 {[%emt 0:01:32]} Nb4 {[%emt 0:10:16]} 21. Bb3 {
[%emt 0:01:30]} Nd5 {[%emt 0:00:53]} 22. Rad1 {[%emt 0:00:54]} Rad8 {[%emt 0:
02:04]} 23. Qh4 {[%emt 0:07:16]} Be5 {[%emt 0:03:30]} 24. Rd2 {[%emt 0:01:28]}
Bf6 {[%emt 0:02:32]} 25. Bg5 {[%emt 0:00:43]} Qe7 {[%emt 0:03:59]} 26. Rxd5 {
[%emt 0:00:50]} Bxg5 {[%emt 0:01:01]} 27. Rxg5 {[%emt 0:00:09]} 1-0

[Event "FIN-ch Seniors 2019"]
[Site "Helsinki"]
[Date "2019.06.17"]
[Round "8.4"]
[White "Sorri, Kari Juhani"]
[Black "Auvinen, Esa"]
[Result "1/2-1/2"]
[ECO "E17"]
[WhiteElo "2184"]
[BlackElo "1899"]
[Annotator "RC"]
[PlyCount "119"]
[EventDate "2019.06.10"]
[EventType "swiss"]
[EventCountry "FIN"]
[SourceTitle "playchess.com"]
[Source "ChessBase"]
[SourceQuality "1"]
[TimeControl "40/5400+30:1800+30"]

1. d4 {[%emt 1:30:30]} Nf6 {[%emt 1:30:30]} 2. Nf3 {[%emt 0:00:30]} e6 {
[%emt 0:00:30]} 3. g3 {[%emt 0:00:30]} d5 {[%emt 0:00:30]} 4. Bg2 {[%emt 0:00:
30]} c5 {[%emt 0:00:30]} 5. b3 {[%emt 0:00:30]} Nbd7 {[%emt 0:00:30]} 6. Bb2 {
[%emt 0:00:30]} Be7 {[%emt 0:00:30]} 7. O-O {[%emt 0:00:30]} O-O {[%emt 0:00:
30]} 8. Nbd2 {[%emt 0:00:30]} b6 {[%emt 0:00:30]} 9. c4 {[%emt 0:00:30]} Bb7 {
[%emt 0:00:30]} 10. Qc2 {[%emt 0:00:30]} dxc4 {[%emt 0:00:30]} 11. Nxc4 {
[%emt 0:00:30]} cxd4 {[%emt 0:00:30]} 12. Bxd4 {[%emt 0:00:30]} Qc7 {[%emt 0:
00:30]} 13. Rac1 {[%emt 0:00:30]} Rac8 {[%emt 0:00:30]} 14. Qb2 {[%emt 0:00:30]
} Qb8 {[%emt 0:00:30]} 15. Nce5 {[%emt 0:00:30]} Nxe5 {[%emt 0:00:30]} 16. Bxe5
{[%emt 0:00:30]} Qa8 {[%emt 0:00:30]} 17. a4 {[%emt 0:00:30]} Rxc1 {[%emt 0:00:
30]} 18. Rxc1 {[%emt 0:00:30]} Rc8 {[%emt 0:00:30]} 19. Qb1 {[%emt 0:00:30]}
Rxc1+ {[%emt 0:00:30]} 20. Qxc1 {[%emt 0:00:30]} Qc8 {[%emt 0:00:30]} 21. Qb1 {
[%emt 0:00:30]} Be4 {[%emt 0:00:30]} 22. Qb2 {[%emt 0:00:30]} Qc2 {[%emt 0:00:
30]} 23. Qxc2 {[%emt 0:00:30]} Bxc2 {[%emt 0:00:30]} 24. Nd4 {[%emt 0:00:30]}
Bd1 {[%emt 0:00:30]} 25. Nc6 {[%emt 0:00:30]} Ba3 {[%emt 0:00:30]} 26. Bb8 {
[%emt 0:00:30]} Nd7 {[%emt 0:00:30]} 27. Bxa7 {[%emt 0:00:30]} Bxb3 {[%emt 0:
00:30]} 28. a5 {[%emt 0:00:30]} bxa5 {[%emt 0:00:30]} 29. Nxa5 {[%emt 0:00:30]}
Ba4 {[%emt 0:00:30]} 30. Nc4 {[%emt 0:00:30]} Bc5 {[%emt 0:00:30]} 31. Bxc5 {
[%emt 0:00:30]} Nxc5 {[%emt 0:00:30]} 32. e4 {[%emt 0:00:30]} Bc6 {[%emt 0:00:
30]} 33. f3 {[%emt 0:00:30]} Kf8 {[%emt 0:00:30]} 34. Kf2 {[%emt 0:00:30]} Ke7
{[%emt 0:00:30]} 35. Ke3 {[%emt 0:00:30]} f6 {[%emt 0:00:30]} 36. f4 {[%emt 0:
00:30]} Nd7 {[%emt 0:00:30]} 37. Bf3 {[%emt 0:00:30]} e5 {[%emt 0:00:30]} 38.
Bg4 {[%emt 0:00:30]} exf4+ {[%emt 0:00:30]} 39. gxf4 {[%emt 0:00:30]} Bb5 {
[%emt 0:00:30]} 40. Na3 {[%emt 0:00:30]} Ba6 {[%emt 0:00:30]} 41. Bxd7 {
[%emt 0:30:30]} Kxd7 {[%emt 0:30:30]} 42. Nc2 {[%emt 0:00:30]} Ke7 {[%emt 0:00:
30]} 43. Kd4 {[%emt 0:00:30]} Bb7 {[%emt 0:00:30]} 44. Ne3 {[%emt 0:00:30]} g5
{[%emt 0:00:30]} 45. fxg5 {[%emt 0:00:30]} fxg5 {[%emt 0:00:30]} 46. Ke5 {
[%emt 0:00:30]} Bc8 {[%emt 0:00:30]} 47. Nd5+ {[%emt 0:00:30]} Kf7 {[%emt 0:00:
30]} 48. Kd6 {[%emt 0:00:30]} h5 {[%emt 0:00:30]} 49. e5 {[%emt 0:00:30]} h4 {
[%emt 0:00:30]} 50. Nf6 {[%emt 0:00:30]} g4 {[%emt 0:00:30]} 51. Nd7 {[%emt 0:
00:30]} Ke8 {[%emt 0:00:30]} 52. Nf6+ {[%emt 0:00:30]} Kf7 {[%emt 0:00:30]} 53.
Ne4 {[%emt 0:00:30]} Bf5 {[%emt 0:00:30]} 54. e6+ {[%emt 0:00:30]} Bxe6 {
[%emt 0:00:30]} 55. Ng5+ {[%emt 0:00:30]} Kf6 {[%emt 0:00:30]} 56. Nxe6 {
[%emt 0:00:30]} g3 {[%emt 0:00:30]} 57. hxg3 {[%emt 0:00:30]} hxg3 {[%emt 0:00:
30]} 58. Nf4 {[%emt 0:00:30]} Kf5 {[%emt 0:00:30]} 59. Ne2 {[%emt 0:00:30]} g2
{[%emt 0:00:30]} 60. Kd5 {[%emt 0:00:30]} 1/2-1/2